bitfinex-derivatives/quotes_BTCF0:USTF0_20250320
["timestamp","ask_amount","ask_price","bid_price","bid_amount"]
[1742478739077,0.1169392,85547.0,85546.0,0.0875]
[1742478739257,0.02782645,85547.0,85546.0,0.0875]
[1742478739658,0.03757165,85547.0,85546.0,0.2044405]
[1742478740158,0.03757165,85547.0,85546.0,0.1169405]
[1742478740371,0.03857165,85547.0,85545.0,0.1169405]
[1742478740661,0.12272645,85546.0,85545.0,0.2067405]
[1742478740857,0.13247165,85546.0,85545.0,0.2067405]
[1742478741062,0.03757165,85546.0,85545.0,0.2067405]
[1742478741260,0.03757165,85546.0,85545.0,0.0898]
[1742478741465,0.116946,85542.0,85541.0,4e-05]
[1742478741662,0.14477245,85542.0,85541.0,0.1169874]
[1742478741857,0.14477245,85542.0,85541.0,0.0892]
[1742478742260,0.02782645,85542.0,85539.0,0.0584744]
[1742478742467,0.21082645,85541.0,85540.0,0.1169487]
[1742478743153,0.22057165,85541.0,85537.0,0.0002]
[1742478743360,0.1169515,85538.0,85537.0,0.1171528]
[1742478743559,0.14477795,85538.0,85537.0,0.1171528]
[1742478743962,0.15452315,85538.0,85537.0,0.1171528]
[1742478744559,0.15452315,85538.0,85537.0,0.1169528]
[1742478744759,0.15452355,85538.0,85537.0,0.1169528]
[1742478745063,0.03757165,85538.0,85537.0,0.1169528]
[1742478745560,0.02044768,85538.0,85537.0,0.1169528]
[1742478745761,0.01170248,85538.0,85537.0,1.6169528]
[1742478746066,0.17413167,85544.0,85543.0,0.1169446]
[1742478746367,0.17413167,85544.0,85537.0,0.178]
[1742478746368,0.1169515,85538.0,85537.0,0.178]
[1742478746582,0.1169528,85537.0,85536.0,0.0909]
[1742478746767,0.2932528,85537.0,85536.0,0.2078542]
[1742478747072,0.30935993,85537.0,85536.0,0.0909]
[1742478747263,0.30935993,85537.0,85536.0,0.1169542]
[1742478747661,0.30935993,85537.0,85535.0,0.1169556]
[1742478747662,0.1169542,85536.0,85535.0,0.1169556]
[1742478747861,0.1169542,85536.0,85533.0,0.2663362]
[1742478747862,0.116957,85534.0,85533.0,0.2663362]
[1742478748072,0.13306413,85534.0,85533.0,0.2663362]
[1742478748272,0.01610713,85534.0,85533.0,0.1493788]
[1742478748479,0.1169638,85529.0,85528.0,0.3608]
[1742478748661,0.0584801,85532.0,85529.0,0.1169627]
[1742478748863,0.1826,85531.0,85529.0,0.1170027]
[1742478749372,0.1169624,85530.0,85529.0,4e-05]
[1742478749669,0.1169761,85520.0,85519.0,0.00884294]
[1742478749864,0.13320247,85520.0,85519.0,0.1169775]
[1742478750060,0.13320247,85520.0,85509.0,0.0868]
[1742478750061,0.01622637,85520.0,85509.0,0.0868]
[1742478750261,0.19882637,85519.0,85518.0,0.1169775]
[1742478750766,0.0894,85519.0,85518.0,0.1169775]
[1742478750965,0.3608,85527.0,85521.0,0.058487]
[1742478751164,0.3608,85527.0,85526.0,0.1169679]
[1742478751669,0.3608,85536.0,85535.0,0.1169556]
[1742478752570,0.4515,85536.0,85535.0,0.1169556]
[1742478752765,0.00017538,85539.0,85537.0,0.1169528]
[1742478753177,0.00017538,85539.0,85537.0,1.6169528]
[1742478753477,0.00017538,85539.0,85537.0,0.0035199]
[1742478753672,0.40654453,85538.0,85537.0,0.0035199]
[1742478753873,0.40654453,85538.0,85537.0,0.1204727]
[1742478754085,0.40654453,85538.0,85537.0,0.0035199]
[1742478754381,0.48726611,85538.0,85537.0,0.0035199]
[1742478754673,0.00951461,85538.0,85537.0,0.1169528]
[1742478755067,0.18891461,85538.0,85537.0,0.1169528]
[1742478755572,0.00951461,85538.0,85537.0,0.1169528]
[1742478755766,0.13909942,85539.0,85538.0,0.1169515]
[1742478755967,0.25604952,85539.0,85538.0,0.1169515]
[1742478756177,0.43544952,85539.0,85538.0,0.1169515]
[1742478756566,0.29652548,85539.0,85538.0,0.1169515]
[1742478756762,0.30599993,85539.0,85538.0,0.1169515]
[1742478756961,0.30599993,85539.0,85431.0,0.39863077]
[1742478757167,0.18904983,85539.0,85538.0,0.1169515]
[1742478757468,0.30599993,85539.0,85538.0,0.1169515]
[1742478757664,0.00964983,85539.0,85538.0,0.2117515]
[1742478757866,0.01935504,85539.0,85538.0,0.2117515]
[1742478758264,0.00988059,85539.0,85538.0,0.2117515]
[1742478758583,0.20895801,85543.0,85542.0,0.116946]
[1742478758771,0.20895801,85543.0,85542.0,0.289626]
[1742478759075,0.20895801,85543.0,85542.0,0.30410892]
[1742478759278,0.20895801,85551.0,85550.0,0.1169351]
[1742478759477,0.20913339,85551.0,85550.0,0.1169351]
[1742478759875,0.20913339,85551.0,85550.0,0.3026351]
[1742478761783,0.21213339,85551.0,85550.0,0.3026351]
[1742478762075,0.21513339,85551.0,85544.0,0.00068]
[1742478762281,0.1802,85550.0,85549.0,0.1169364]
[1742478762673,0.2971351,85550.0,85549.0,0.1169364]
[1742478762872,0.1169487,85540.0,85535.0,0.1169555]
[1742478763168,0.1169485,85541.0,85540.0,0.1169486]
[1742478763372,0.0906,85539.0,85538.0,0.0584757]
[1742478763580,0.1490755,85539.0,85535.0,0.0891]
[1742478763770,0.0874,85538.0,85537.0,0.1169528]
[1742478763969,0.1169542,85536.0,85535.0,0.0891]
[1742478764175,0.1169556,85535.0,85529.0,0.1475817]
[1742478764479,0.2949556,85535.0,85532.0,0.0584792]
[1742478764776,0.178,85535.0,85534.0,0.11713238]
[1742478765776,0.0874,85535.0,85534.0,0.20623238]
[1742478766080,0.3608,85536.0,85535.0,0.1169556]
[1742478766283,0.05686507,85538.0,85537.0,0.1169528]
[1742478766880,0.05686507,85538.0,85537.0,1.7961528]
[1742478768179,0.05686507,85538.0,85537.0,0.2961528]
[1742478768574,0.11534117,85538.0,85534.0,0.00017538]
[1742478768775,0.11534117,85538.0,85536.0,0.1169528]
[1742478768776,0.3565312,85537.0,85536.0,0.1169528]
[1742478768976,0.2395764,85537.0,85536.0,0.1169528]
[1742478769179,0.2395764,85537.0,85536.0,0.1119528]
[1742478769478,0.1811,85537.0,85536.0,0.1119528]
[1742478769780,0.1169556,85535.0,85534.0,0.00017538]
[1742478769972,0.1169556,85535.0,85534.0,0.11713238]
[1742478770176,0.177,85535.0,85534.0,0.11713238]
[1742478770376,0.0865,85535.0,85534.0,0.11713238]
[1742478770582,0.26133865,85539.0,85538.0,0.1169515]
[1742478770775,0.26133865,85539.0,85538.0,0.2847115]
[1742478770978,0.37828875,85539.0,85538.0,0.3772115]
[1742478771174,0.37828875,85539.0,85538.0,0.26026]
[1742478771375,0.37828875,85539.0,85538.0,0.3772115]
[1742478771575,0.46878875,85539.0,85538.0,0.3772115]
[1742478772786,0.35183865,85539.0,85538.0,0.4661115]
[1742478773170,0.35183865,85539.0,85538.0,0.2983515]
[1742478774081,0.17483865,85539.0,85538.0,0.2983515]
[1742478774484,0.05686507,85539.0,85538.0,0.2983515]
[1742478775484,4e-05,85560.0,85544.0,0.058471]
[1742478775683,0.09224,85559.0,85556.0,0.4777269]
[1742478775984,0.41207815,85580.0,85579.0,0.1168955]
[1742478776184,0.3067105,85580.0,85579.0,0.1168955]
[1742478776384,0.4236046,85580.0,85579.0,0.1168955]
[1742478776691,0.41207815,85580.0,85579.0,0.1168955]
[1742478777289,0.29518405,85580.0,85579.0,0.1168955]
[1742478777682,0.64471958,85580.0,85579.0,0.1168955]
[1742478778393,0.64971958,85580.0,85579.0,0.1168955]
[1742478778789,0.65471958,85580.0,85579.0,0.2888955]
[1742478779088,0.56341958,85580.0,85579.0,0.2888955]
[1742478779595,0.47121958,85580.0,85579.0,0.2888955]
[1742478780184,0.48075497,85580.0,85579.0,0.1168955]
[1742478780585,0.75205497,85580.0,85579.0,0.1168955]
[1742478781293,0.75205497,85580.0,85575.0,0.0584499]
[1742478781484,0.12643149,85579.0,85578.0,0.1168968]
[1742478781796,0.13593309,85579.0,85578.0,0.1168968]
[1742478781996,0.19523699,85579.0,85576.0,0.116899]
[1742478782192,0.19523699,85579.0,85577.0,0.1168982]
[1742478782193,0.0096948,85578.0,85577.0,0.1168982]
[1742478782386,0.0191964,85578.0,85577.0,0.1168982]
[1742478782587,0.1953964,85578.0,85577.0,0.1168982]
[1742478782990,0.1858948,85578.0,85577.0,0.1168982]
[1742478783699,0.1968948,85578.0,85577.0,0.1168982]
[1742478784087,0.19681096,85578.0,85577.0,0.1168982]
[1742478784287,0.19681096,85578.0,85577.0,0.2041982]
[1742478784898,0.13949483,85587.0,85579.0,0.0584471]
[1742478785092,0.13949483,85587.0,85584.0,0.4776886]
[1742478785392,0.13949483,85587.0,85586.0,0.1168859]
[1742478785594,4e-05,85589.0,85587.0,0.1168845]
[1742478785800,4e-05,85589.0,85587.0,0.2981845]
[1742478785996,0.1168806,85590.0,85587.0,0.2788045]
[1742478786301,0.0923,85589.0,85587.0,0.2788045]
[1742478786498,0.09207528,85588.0,85587.0,0.2786445]
[1742478786684,0.10169511,85588.0,85587.0,0.2786445]
[1742478787187,0.10669511,85588.0,85587.0,0.2786445]
[1742478787699,0.10007528,85588.0,85587.0,0.2786445]
[1742478788289,0.10019528,85588.0,85587.0,0.2786445]
[1742478788590,0.19379528,85588.0,85587.0,0.2786445]
[1742478788896,0.20336669,85588.0,85587.0,0.2786445]
[1742478789100,0.00957141,85588.0,85587.0,0.2786445]
[1742478789293,0.0885,85599.0,85598.0,0.1168695]
[1742478789487,0.0885,85599.0,85598.0,0.6384295]
[1742478789901,0.089,85609.0,85598.0,0.8153295]
[1742478790198,0.0584247,85613.0,85608.0,0.0584279]
[1742478790400,0.0584327,85602.0,85599.0,0.1606]
[1742478790700,0.0891,85601.0,85600.0,0.1168654]
[1742478791087,0.0891,85601.0,85597.0,0.0584348]
[1742478791293,0.0893,85600.0,85599.0,0.1168681]
[1742478791500,0.1811,85600.0,85599.0,0.1168681]
[1742478792497,0.1811,85600.0,85599.0,0.3006681]
[1742478792701,0.0893,85600.0,85599.0,0.3006681]
[1742478793001,0.0943,85600.0,85599.0,0.3006681]
[1742478793592,0.0943,85600.0,85599.0,0.4601481]
[1742478793793,0.0943,85600.0,85599.0,0.1168681]
[1742478794698,0.1168709,85597.0,85596.0,0.1594]
[1742478795009,0.1168722,85596.0,85595.0,0.11704888]
[1742478795213,0.3998722,85596.0,85595.0,0.11704888]
[1742478795508,0.283,85596.0,85595.0,0.11704888]
[1742478795806,0.3998722,85596.0,85595.0,0.00017528]
[1742478796004,0.283,85596.0,85576.0,0.0584495]
[1742478796302,0.1169036,85573.0,85572.0,0.1588]
[1742478796494,0.058449,85578.0,85572.0,0.2172522]
[1742478796692,0.0976,85574.0,85573.0,0.1169036]
[1742478796894,0.10730481,85574.0,85573.0,0.1169036]
[1742478797505,0.1169036,85573.0,85572.0,0.2757047]
[1742478797703,0.12660841,85573.0,85572.0,0.1169047]
[1742478798304,0.1169091,85569.0,85568.0,4e-05]
[1742478798499,0.00970481,85569.0,85568.0,0.1169505]
[1742478798701,0.10730481,85569.0,85568.0,0.1169105]
[1742478799117,0.10730481,85569.0,85568.0,0.3066105]
[1742478799303,0.10680481,85569.0,85568.0,0.3066105]
[1742478799696,0.10676102,85569.0,85568.0,0.3066105]
[1742478799895,0.10776102,85569.0,85568.0,0.3066105]
[1742478800497,0.10776102,85569.0,85565.0,0.15037258]
[1742478800498,0.1169132,85566.0,85565.0,0.11712868]
[1742478800699,0.1169132,85566.0,85565.0,0.00017528]
[1742478800700,0.12657422,85566.0,85565.0,0.00017528]
[1742478801100,0.00966102,85566.0,85565.0,0.11708988]
[1742478801298,0.0989,85568.0,85565.0,0.05863188]
[1742478801514,0.0989,85568.0,85567.0,0.1169118]
[1742478802207,0.0989,85568.0,85567.0,0.3663918]
[1742478803808,0.0989,85568.0,85567.0,0.15748]
[1742478804107,0.0999,85568.0,85567.0,0.2743918]
[1742478804514,0.1975,85568.0,85567.0,0.2743918]
[1742478805402,0.1975,85568.0,85567.0,0.2753918]
[1742478805598,0.0986,85568.0,85567.0,0.2753918]
[1742478805802,0.20865289,85584.0,85567.0,0.56848]
[1742478806007,0.07564823,85584.0,85583.0,0.11689]
[1742478806202,0.07564823,85584.0,85583.0,0.27325]
[1742478806507,0.07564823,85584.0,85583.0,0.72245]
[1742478806921,0.07564823,85584.0,85583.0,2.22245]
[1742478807207,0.07564823,85584.0,85583.0,1.96245]
[1742478807713,0.0955,85588.0,85587.0,0.1168845]
[1742478808217,0.0955,85588.0,85587.0,0.3060845]
[1742478808507,0.0955,85588.0,85587.0,0.2146845]
[1742478809212,0.0955,85588.0,85587.0,0.3057845]
[1742478810211,0.0975,85588.0,85587.0,0.3057845]
[1742478810414,0.0975,85588.0,85587.0,0.2146845]
[1742478810614,0.0975,85588.0,85587.0,0.1168845]
[1742478810812,0.0975,85588.0,85566.0,0.0914]
[1742478811018,0.1168941,85580.0,85572.0,0.15472]
[1742478811316,0.1169036,85573.0,85572.0,0.271625]
[1742478811814,0.2095036,85573.0,85572.0,0.271625]
[1742478812198,0.0926,85573.0,85572.0,0.457425]
[1742478812607,0.2095036,85573.0,85572.0,0.457425]
[1742478812899,0.2095036,85573.0,85568.0,8e-05]
[1742478812900,0.1149091,85569.0,85568.0,8e-05]
[1742478813298,0.2075091,85569.0,85568.0,8e-05]
[1742478813703,0.2075091,85569.0,85565.0,0.00017528]
[1742478813704,0.1169132,85566.0,85565.0,0.00017528]
[1742478813898,0.4777132,85566.0,85565.0,0.00017528]
[1742478814120,0.5683132,85566.0,85565.0,0.11708988]
[1742478814802,0.5663132,85566.0,85565.0,0.11708988]
[1742478815208,0.4534,85566.0,85565.0,0.11708988]
[1742478815412,0.5703132,85566.0,85565.0,0.11708988]
[1742478815914,0.5703132,85566.0,85565.0,0.12108988]
[1742478816104,0.2095132,85566.0,85565.0,0.12108988]
[1742478816702,0.2095132,85566.0,85565.0,0.12408988]
[1742478817214,0.0926,85566.0,85565.0,0.12408988]
[1742478817701,0.2095132,85566.0,85565.0,0.12408988]
[1742478818611,0.4777036,85573.0,85572.0,0.116905]
[1742478818812,0.1168991,85577.0,85573.0,0.1169036]
[1742478819010,0.4083,85589.0,85573.0,0.1169036]
[1742478819011,0.0584432,85586.0,85573.0,0.2149036]
[1742478819211,0.4526,85590.0,85573.0,0.4449036]
[1742478819511,0.5694811,85590.0,85573.0,0.5449036]
[1742478819716,0.1168822,85589.0,85573.0,0.5449036]
[1742478819904,0.2076822,85589.0,85573.0,2.1410036]
[1742478820104,0.2077224,85589.0,85573.0,2.1410036]
[1742478820517,0.1168909,85583.0,85573.0,2.1420036]
[1742478820711,0.1168846,85587.0,85573.0,2.1420036]
[1742478820911,0.09084,85589.0,85573.0,2.1420036]
[1742478821219,0.2077228,85589.0,85573.0,2.1420036]
[1742478821411,0.09084,85589.0,85573.0,2.1420036]
[1742478821603,8e-08,85574.0,85573.0,2.1430036]
[1742478821802,8e-08,85574.0,85573.0,2.2930036]
[1742478824119,8e-08,85574.0,85573.0,2.7068036]
[1742478824505,8e-08,85574.0,85573.0,2.88306283]
[1742478829227,8e-08,85574.0,85573.0,2.8563236]
[1742478832811,0.0868,85610.0,85593.0,0.5843766]
[1742478833016,0.0397195,85609.0,85608.0,0.1168559]
[1742478833220,0.0954,85619.0,85618.0,0.1168422]
[1742478833416,0.0954,85619.0,85618.0,0.6262422]
[1742478833618,0.20916777,85628.0,85623.0,0.1168354]
[1742478833817,0.0921,85627.0,85623.0,0.1168354]
[1742478834415,0.0921,85627.0,85623.0,0.12544813]
[1742478834815,0.00204,85624.0,85623.0,0.12544813]
[1742478835020,0.00204,85624.0,85623.0,0.00861273]
[1742478835216,0.00204,85624.0,85623.0,0.1168354]
[1742478836028,0.00204,85624.0,85622.0,0.1168364]
[1742478836216,0.0989,85623.0,85622.0,0.1168364]
[1742478838028,0.1009,85623.0,85622.0,0.1168364]
[1742478838229,0.1009,85623.0,85620.0,0.2336768]
[1742478838422,0.1019,85623.0,85622.0,0.1168367]
[1742478838628,0.2187354,85623.0,85622.0,0.1168367]
[1742478839132,0.1029,85623.0,85622.0,0.1168367]
[1742478839328,0.1899,85623.0,85622.0,0.1168367]
[1742478839524,0.1879,85623.0,85622.0,0.1168367]
[1742478839826,0.3077354,85623.0,85622.0,0.1168367]
[1742478840027,0.0584189,85622.0,85616.0,0.0584224]
[1742478840229,0.0584189,85622.0,85615.0,0.00017528]
[1742478840230,0.1168449,85616.0,85615.0,0.00017528]
[1742478840733,0.1168449,85616.0,85594.0,0.84856]
[1742478840734,0.1753015,85601.0,85600.0,0.1168613]
[1742478841128,0.5361015,85601.0,85600.0,0.1168613]
[1742478841331,0.3608,85601.0,85599.0,0.0310953]
[1742478841532,0.1168666,85601.0,85600.0,0.1168613]
[1742478841722,0.3608,85609.0,85602.0,0.0584316]
[1742478841928,0.36097528,85609.0,85606.0,0.1168578]
[1742478842130,0.1752872,85607.0,85606.0,0.1752846]
[1742478842435,0.36097528,85609.0,85608.0,0.1168559]
[1742478844122,0.36297528,85609.0,85608.0,0.1168559]
[1742478844323,0.45597528,85609.0,85608.0,0.1168559]
[1742478844535,0.45397528,85609.0,85608.0,0.1168559]
[1742478844729,0.45597528,85609.0,85608.0,0.1168559]
[1742478845032,0.45697528,85609.0,85608.0,0.1168559]
[1742478845536,0.00317528,85609.0,85608.0,0.1168559]
[1742478845919,0.00417528,85609.0,85608.0,0.3668559]
[1742478847139,0.00517528,85609.0,85608.0,0.3668559]
[1742478847432,0.00517528,85609.0,85608.0,0.4581559]
[1742478847731,0.00417528,85609.0,85608.0,0.4581559]
[1742478847935,0.00417528,85609.0,85608.0,0.3527159]
[1742478848131,0.12102978,85609.0,85608.0,0.23586]
[1742478848334,0.00417528,85609.0,85608.0,0.2081559]
[1742478848533,0.00417528,85609.0,85608.0,0.3525959]
[1742478848534,0.12037528,85609.0,85608.0,0.3525959]
[1742478848724,0.09927528,85609.0,85608.0,0.3525959]
[1742478850325,0.1168586,85606.0,85605.0,0.3608]
[1742478850632,0.1752919,85604.0,85603.0,0.14404]
[1742478850833,0.0951,85605.0,85594.0,0.01364025]
[1742478851025,0.1753036,85599.0,85595.0,0.1442]
[1742478851228,0.1168722,85596.0,85595.0,0.1442]
[1742478851427,0.1163,85598.0,85592.0,0.36097528]
[1742478851623,0.1166,85595.0,85592.0,0.36097528]
[1742478851828,0.1166,85595.0,85593.0,0.116876]
[1742478852031,0.1166,85595.0,85593.0,0.2337517]
[1742478852342,0.1166,85595.0,85594.0,0.116875]
[1742478852537,0.1146,85595.0,85594.0,0.116875]
[1742478852943,0.1168763,85593.0,85592.0,0.00017528]
[1742478853436,0.1158763,85593.0,85592.0,0.11705298]
[1742478853624,0.1370763,85593.0,85592.0,0.00017528]
[1742478854031,0.1370763,85593.0,85592.0,0.11705298]
[1742478854431,0.1370763,85593.0,85592.0,0.00017528]
[1742478854841,0.1400763,85593.0,85592.0,0.11705298]
[1742478855232,0.1400763,85593.0,85592.0,0.00017528]
[1742478855433,0.1168859,85586.0,85585.0,0.20717254]
[1742478855639,0.1168927,85581.0,85568.0,0.0963]
[1742478855828,0.1169009,85575.0,85567.0,0.41369654]
[1742478856034,0.1169105,85568.0,85567.0,0.41369654]
[1742478856231,0.49147705,85568.0,85567.0,0.1169118]
[1742478856732,0.1169159,85565.0,85564.0,0.1169151]
[1742478856932,0.1169173,85563.0,85562.0,0.1173578]
[1742478857338,0.095,85564.0,85563.0,0.1169173]
[1742478857628,0.095,85564.0,85563.0,0.2132173]
[1742478857829,0.095,85564.0,85563.0,0.3113173]
[1742478858238,0.1169173,85563.0,85562.0,0.1173578]
[1742478858441,0.1531173,85563.0,85562.0,0.00044]
[1742478858641,0.1531173,85563.0,85562.0,0.1173587]
[1742478858843,0.1531173,85563.0,85562.0,0.0004]
[1742478859643,0.1541173,85563.0,85562.0,0.0004]
[1742478860245,0.0372,85563.0,85562.0,0.0004]
[1742478860445,0.001,85563.0,85562.0,0.1173187]
[1742478860746,0.001,85563.0,85562.0,0.3064187]
[1742478861140,0.001,85563.0,85562.0,1.8064187]
[1742478861331,0.3608,85566.0,85562.0,1.6895]
[1742478861533,0.1179173,85563.0,85562.0,1.6895]
[1742478862143,0.1179173,85563.0,85562.0,1.83154]
[1742478862945,0.1179173,85563.0,85562.0,1.6895]
[1742478863531,0.3608,85566.0,85562.0,1.6895]
[1742478863735,0.1169159,85564.0,85563.0,0.0954]
[1742478864343,0.1169159,85564.0,85563.0,1.6911]
[1742478864740,0.47831441,85566.0,85563.0,0.1911]
[1742478864932,0.001,85564.0,85563.0,0.1911]
[1742478865134,0.00017528,85576.0,85564.0,0.0584579]
[1742478865339,0.00017528,85576.0,85567.0,0.3608]
[1742478865540,0.00017528,85576.0,85573.0,0.1169036]
[1742478865541,0.2566,85574.0,85573.0,0.1169036]
[1742478865840,0.00017528,85576.0,85575.0,0.1169009]
[1742478866038,0.00017528,85576.0,85574.0,0.1901]
[1742478866540,0.00017528,85576.0,85575.0,0.1169009]
[1742478866745,0.1169009,85575.0,85574.0,0.1901]
[1742478867644,0.2103009,85575.0,85574.0,0.0944]
[1742478867849,0.2465009,85575.0,85574.0,0.0944]
[1742478868439,0.2505009,85575.0,85574.0,0.0944]
[1742478868639,0.2525009,85575.0,85574.0,0.0944]
[1742478869449,0.2163009,85575.0,85574.0,0.0944]
[1742478870042,0.2163009,85575.0,85574.0,0.2113023]
[1742478870440,0.35542761,85575.0,85574.0,0.194]
[1742478870743,0.1753686,85570.0,85569.0,0.1169088]
[1742478870946,0.1753691,85568.0,85567.0,0.116911]
[1742478871152,0.1169132,85566.0,85565.0,0.175409]
[1742478871544,0.1531132,85566.0,85565.0,0.175409]
[1742478871742,0.14512671,85575.0,85565.0,0.175409]
[1742478871743,0.14512671,85575.0,85574.0,0.1169023]
[1742478872047,0.13912671,85575.0,85574.0,0.1169023]
[1742478872744,0.00017528,85576.0,85572.0,0.12817368]
[1742478872945,0.00017528,85576.0,85575.0,0.1169009]
[1742478873156,0.00017528,85576.0,85572.0,0.12817368]
[1742478873356,0.11707488,85576.0,85575.0,0.1169009]
[1742478873654,0.1169036,85573.0,85572.0,0.12817368]
[1742478873844,0.4777036,85573.0,85572.0,0.12817368]
[1742478874044,0.5764036,85573.0,85572.0,0.12817368]
[1742478874748,0.4595,85573.0,85572.0,0.44067868]
[1742478874952,0.5764036,85573.0,85572.0,0.44067868]
[1742478875438,0.5774036,85573.0,85572.0,0.44067868]
[1742478875844,0.5784036,85573.0,85572.0,0.32377368]
[1742478876243,0.6727036,85573.0,85572.0,0.0975]
[1742478876959,0.6727036,85573.0,85572.0,0.214405]
[1742478877251,0.4615,85573.0,85572.0,0.214405]
[1742478877451,0.3628,85573.0,85572.0,0.307205]
[1742478877753,0.4797036,85573.0,85572.0,0.307205]
[1742478877940,0.4797036,85573.0,85572.0,0.1903]
[1742478878141,0.6735036,85573.0,85572.0,0.307205]
[1742478878558,0.5792036,85573.0,85572.0,0.307205]
[1742478881249,0.3628,85573.0,85572.0,0.307205]
[1742478882764,0.002,85573.0,85572.0,0.307205]
[1742478884051,0.1189036,85573.0,85572.0,0.307205]
[1742478884462,0.1189036,85573.0,85562.0,0.00044]
[1742478884463,0.0584536,85571.0,85562.0,0.00044]
[1742478884763,0.1169337,85551.0,85550.0,4e-05]
[1742478884959,0.3608,85551.0,85542.0,0.0966]
[1742478885153,0.1169446,85543.0,85542.0,0.0966]
[1742478885548,0.2130446,85543.0,85542.0,0.0966]
[1742478885864,0.5718446,85543.0,85542.0,0.0966]
[1742478886253,0.6717446,85543.0,85542.0,0.0966]
[1742478887765,0.84611011,85543.0,85542.0,0.008]
[1742478887957,0.1169528,85537.0,85535.0,0.1889]
[1742478888155,0.1169556,85535.0,85534.0,0.00021528]
[1742478888767,0.3237556,85535.0,85534.0,0.00017528]
[1742478889367,0.3237556,85535.0,85527.0,0.13664]
[1742478889368,0.1169652,85528.0,85527.0,0.13664]
[1742478889556,0.4777652,85528.0,85527.0,0.13664]
[1742478889755,0.4777652,85528.0,85527.0,0.2536065]
[1742478889960,0.4777652,85528.0,85527.0,0.3512065]
[1742478890167,0.6845652,85528.0,85527.0,0.4454065]
[1742478890759,0.6835652,85528.0,85527.0,0.4454065]
[1742478891361,0.3608,85528.0,85527.0,0.4454065]
[1742478891562,0.3608,85528.0,85527.0,0.4484065]
[1742478892055,0.17436551,85531.0,85527.0,0.4484065]
[1742478892256,0.17436551,85531.0,85530.0,0.1169624]
[1742478892455,0.17436551,85531.0,85530.0,0.3769624]
[1742478892665,0.20916777,85536.0,85535.0,0.1169556]
[1742478892966,0.20916777,85536.0,85535.0,1.7529956]
[1742478893669,0.20916777,85536.0,85535.0,0.2529956]
[1742478893861,0.32612197,85536.0,85535.0,0.13604]
[1742478894657,0.1169576,85534.0,85532.0,0.1169591]
[1742478894862,0.1169576,85534.0,85533.0,0.1015]
[1742478895256,0.3608,85534.0,85530.0,0.002]
[1742478895457,0.1169652,85528.0,85527.0,0.13584]
[1742478895866,0.1169677,85527.0,85523.0,0.1169719]
[1742478896069,0.0584812,85531.0,85524.0,0.09724]
[1742478896270,0.0584812,85531.0,85524.0,0.19874]
[1742478896458,0.1169654,85528.0,85524.0,0.2572248]
[1742478896679,0.0584823,85529.0,85524.0,0.19874]
[1742478896863,0.1169693,85525.0,85524.0,0.10154]
[1742478897168,0.1169693,85525.0,85524.0,0.2185106]
[1742478897370,0.1169644,85529.0,85528.0,0.0584821]
[1742478897964,0.1169665,85527.0,85526.0,0.0584833]
[1742478898170,0.1169693,85525.0,85524.0,0.1015]
[1742478898365,0.0584839,85527.0,85526.0,0.1169665]
[1742478898366,0.1169675,85527.0,85526.0,0.1169665]
[1742478898762,0.1169675,85527.0,85526.0,0.0971]
[1742478898966,0.1169693,85525.0,85524.0,0.0584851]
[1742478899167,0.1169706,85524.0,85523.0,4e-05]
[1742478899675,0.0584846,85526.0,85525.0,0.1169693]
[1742478900067,0.4192846,85526.0,85525.0,0.1169693]
[1742478900268,0.1169734,85522.0,85519.0,4e-05]
[1742478900466,0.1169966,85505.0,85504.0,0.1004]
[1742478900768,0.1169966,85506.0,85505.0,0.1169938]
[1742478900969,0.1169966,85506.0,85504.0,0.1004]
[1742478900970,0.1169966,85505.0,85504.0,0.217398]
[1742478901158,0.1169966,85505.0,85504.0,0.318298]
[1742478901364,0.1170021,85501.0,85497.0,4e-05]
[1742478901566,0.1150021,85501.0,85500.0,0.2170035]
[1742478901877,0.1150021,85501.0,85500.0,0.1]
[1742478902063,0.4758021,85501.0,85500.0,0.1]
[1742478902266,0.4758021,85501.0,85480.0,0.3694129]
[1742478902267,0.0585069,85493.0,85483.0,0.1170266]
[1742478902472,0.1170213,85487.0,85486.0,0.1170626]
[1742478902972,0.1170213,85487.0,85486.0,4e-05]
[1742478903675,0.1170213,85487.0,85486.0,0.1170226]
[1742478904065,0.1170281,85483.0,85482.0,0.1755406]
[1742478904266,0.1170281,85483.0,85480.0,4e-05]
[1742478904267,0.1170295,85481.0,85480.0,4e-05]
[1742478905070,0.1170322,85479.0,85478.0,0.0585164]
[1742478905266,0.1170391,85474.0,85473.0,0.2186404]
[1742478905773,0.1170391,85474.0,85473.0,0.1999]
[1742478905974,0.1170391,85474.0,85473.0,0.1016]
[1742478906162,0.11705,85469.0,85468.0,0.0585234]
[1742478906367,0.11705,85469.0,85468.0,0.2121473]
[1742478906573,0.11705,85469.0,85468.0,0.0951]
[1742478906776,0.11705,85469.0,85468.0,0.09514]
[1742478907573,0.11705,85469.0,85468.0,4e-05]
[1742478907778,0.11705,85469.0,85468.0,0.1170473]
[1742478908170,0.11805,85469.0,85468.0,0.1975]
[1742478908681,0.12800854,85469.0,85468.0,0.1975]
[1742478908871,0.12800854,85469.0,85468.0,0.3145473]
[1742478909274,0.12900854,85469.0,85468.0,0.3145473]
[1742478909872,0.12900854,85469.0,85468.0,0.1975]
[1742478910470,0.12900854,85469.0,85468.0,0.0951]
[1742478910872,0.12900854,85469.0,85468.0,0.2121473]
[1742478911469,0.12900854,85469.0,85468.0,0.0951]
[1742478911690,0.11905,85469.0,85468.0,0.0951]
[1742478911872,0.1170486,85467.0,85466.0,0.13844]
[1742478912179,0.1170486,85467.0,85466.0,4e-05]
[1742478912574,0.2126486,85467.0,85466.0,4e-05]
[1742478912776,0.0956,85467.0,85466.0,0.11705]
[1742478912985,0.2126486,85467.0,85466.0,0.11705]
[1742478913369,0.0956,85467.0,85466.0,0.11705]
[1742478913685,0.0956,85467.0,85466.0,0.31255]
[1742478913879,0.0956,85467.0,85466.0,0.20857207]
[1742478914068,0.2126486,85467.0,85466.0,0.20857207]
[1742478914273,0.2126486,85467.0,85466.0,0.10827207]
[1742478914877,0.2126486,85467.0,85466.0,0.0952]
[1742478915576,0.2126486,85467.0,85466.0,0.21225]
[1742478915785,0.2126486,85467.0,85466.0,0.0952]
[1742478915979,0.3125486,85467.0,85466.0,0.0952]
[1742478916381,0.1170527,85464.0,85463.0,4e-05]
[1742478916780,0.1170582,85460.0,85459.0,0.1021]
[1742478916982,0.1170774,85446.0,85445.0,0.13062901]
[1742478917176,0.1170774,85446.0,85444.0,0.0951]
[1742478917177,0.1170788,85445.0,85444.0,0.0951]
[1742478917385,0.1170788,85445.0,85437.0,0.1021]
[1742478917386,0.2047,85445.0,85424.0,0.0585525]